bitfinex/quotes_SOLUSD_20230113
["timestamp","ask_amount","ask_price","bid_price","bid_amount"]
[1673624299956,44.63,16.809,16.794,115.0723]
[1673624300271,222.63,16.809,16.794,115.0723]
[1673624300450,179.0,16.809,16.794,115.0723]
[1673624300662,44.63,16.809,16.794,115.0723]
[1673624300875,20.0,16.81,16.794,115.0723]
[1673624301087,44.63,16.809,16.794,115.0723]
[1673624301297,223.63,16.809,16.794,115.0723]
[1673624301748,20.0,16.808,16.791,119.9915]
[1673624301927,223.64,16.807,16.791,119.9915]
[1673624302140,20.0,16.806,16.791,119.9915]
[1673624304781,115.763,16.807,16.791,119.9915]
[1673624305818,84.63,16.812,16.791,119.9915]
[1673624306366,64.63,16.812,16.792,20.0]
[1673624306990,20.0,16.812,16.792,20.0]
[1673624307707,40.0,16.812,16.791,119.9915]
[1673624307921,44.63,16.811,16.791,119.9915]
[1673624308149,20.0,16.81,16.791,119.9915]
[1673624308359,243.63,16.81,16.791,119.9915]
[1673624308548,20.0,16.809,16.791,119.9915]
[1673624308755,44.64,16.808,16.791,119.9915]
[1673624308969,109.8254,16.808,16.791,119.9915]
[1673624309917,288.8254,16.808,16.791,119.9915]
[1673624310130,20.0,16.807,16.791,119.9915]
[1673624310553,288.8254,16.808,16.791,119.9915]
[1673624310763,109.8254,16.808,16.791,119.9915]
[1673624312253,288.8254,16.808,16.791,119.9915]
[1673624312438,288.8254,16.808,16.79,80.6]
[1673624312648,20.0,16.807,16.79,16.12]
[1673624314958,179.0,16.806,16.79,16.12]
[1673624315168,20.0,16.805,16.79,16.12]
[1673624315693,179.0,16.806,16.79,16.12]
[1673624315898,44.64,16.807,16.79,16.12]
[1673624316115,109.8254,16.808,16.79,16.12]
[1673624317597,64.64,16.807,16.79,16.12]
[1673624318029,179.0,16.806,16.79,16.12]
[1673624318231,20.0,16.805,16.79,16.12]
[1673624318640,223.64,16.806,16.79,16.12]
[1673624319606,20.0,16.805,16.79,16.12]
[1673624320024,223.64,16.806,16.79,16.12]
[1673624320449,179.0,16.806,16.79,16.12]
[1673624321286,199.0,16.807,16.79,16.12]
[1673624321699,154.4654,16.808,16.79,16.12]
[1673624322967,109.8254,16.808,16.79,16.12]
[1673624323381,44.64,16.807,16.79,16.12]
[1673624324863,44.64,16.807,16.79,80.6]
[1673624325068,109.8254,16.808,16.79,80.6]
[1673624325278,109.8254,16.808,16.791,20.0]
[1673624326115,44.63,16.809,16.79,80.6]
[1673624326340,44.63,16.811,16.8,16.05]
[1673624326523,44.62,16.815,16.8,16.05]
[1673624326733,44.61,16.816,16.8,16.05]
[1673624327592,20.0,16.815,16.8,16.05]
[1673624327801,44.62,16.814,16.8,16.05]
[1673624328011,20.0,16.813,16.8,16.05]
[1673624328338,44.63,16.812,16.8,16.05]
[1673624328524,20.0,16.811,16.8,16.05]
[1673624328857,44.63,16.81,16.8,16.05]
[1673624329056,179.0,16.809,16.793,115.8663]
[1673624329268,179.0,16.807,16.793,115.8663]
[1673624329481,243.64,16.806,16.793,115.8663]
[1673624329698,243.64,16.806,16.79,16.12]
[1673624330008,44.64,16.806,16.79,16.12]
[1673624330209,64.63,16.809,16.79,16.12]
[1673624330835,44.63,16.809,16.79,80.6]
[1673624331684,223.63,16.809,16.79,80.6]
[1673624332323,20.0,16.808,16.79,80.6]
[1673624332637,179.0,16.806,16.79,16.12]
[1673624332842,44.64,16.805,16.79,16.12]
[1673624333793,223.64,16.805,16.79,16.12]
[1673624336720,179.0,16.807,16.79,16.12]
[1673624336929,223.64,16.806,16.79,16.12]
[1673624337355,20.0,16.805,16.79,16.12]
[1673624337678,223.65,16.804,16.79,16.12]
[1673624337893,20.0,16.803,16.79,16.12]
[1673624338086,44.65,16.802,16.79,16.12]
[1673624338714,20.0,16.803,16.79,16.12]
[1673624339359,44.65,16.804,16.79,16.12]
[1673624339560,44.64,16.808,16.79,16.12]
[1673624340298,20.0,16.807,16.79,16.12]
[1673624340517,44.64,16.806,16.79,16.12]
[1673624341996,223.64,16.806,16.79,16.12]
[1673624342612,20.0,16.805,16.79,16.12]
[1673624343021,179.0,16.803,16.79,16.12]
[1673624343652,44.65,16.804,16.79,16.12]
[1673624344196,223.64,16.806,16.79,16.12]
[1673624346400,20.0,16.805,16.79,16.12]
[1673624347333,223.64,16.806,16.79,16.12]
[1673624347543,179.0,16.806,16.79,16.12]
[1673624347748,44.64,16.807,16.79,16.12]
[1673624348069,44.64,16.808,16.79,16.12]
[1673624348279,64.64,16.808,16.79,16.12]
[1673624348504,44.64,16.808,16.79,16.12]
[1673624348701,152.86,16.81,16.79,16.12]
[1673624348911,331.86,16.81,16.79,110.4800799]
[1673624349230,152.86,16.81,16.79,110.4800799]
[1673624349652,152.86,16.81,16.791,20.0]
[1673624349972,152.86,16.81,16.792,29.8800799]
[1673624350505,152.86,16.81,16.791,20.0]
[1673624350902,152.86,16.81,16.791,49.8800799]
[1673624351949,44.63,16.81,16.791,49.8800799]
[1673624352164,44.63,16.81,16.8,16.12]
[1673624353005,44.62,16.815,16.8,80.35]
[1673624353753,44.62,16.815,16.801,20.0]
[1673624355325,115.8953,16.816,16.801,20.0]
[1673624355528,44.62,16.815,16.801,20.0]
[1673624358066,223.61,16.819,16.801,20.0]
[1673624358385,44.61,16.819,16.801,20.0]
[1673624358571,44.6,16.82,16.801,20.0]
[1673624360894,223.6,16.82,16.801,20.0]
[1673624361109,20.0,16.819,16.801,20.0]
[1673624361429,44.61,16.818,16.801,20.0]
[1673624363017,44.6,16.82,16.801,20.0]
[1673624363737,223.6,16.82,16.801,20.0]
[1673624363947,20.0,16.819,16.801,20.0]
[1673624364173,44.61,16.818,16.801,20.0]
[1673624364584,20.0,16.818,16.801,20.0]
[1673624364791,44.61,16.817,16.801,20.0]
[1673624366510,44.61,16.818,16.801,20.0]
[1673624366682,44.61,16.819,16.801,20.0]
[1673624367217,44.61,16.819,16.81,16.12]
[1673624367531,44.6,16.82,16.81,16.12]
[1673624367954,20.0,16.819,16.81,15.50248]
[1673624368151,44.61,16.818,16.81,15.50248]
[1673624368685,44.6,16.82,16.81,15.50248]
[1673624369837,223.6,16.82,16.81,15.50248]
[1673624370161,20.0,16.819,16.81,15.50248]
[1673624370376,44.61,16.818,16.81,15.50248]
[1673624370787,44.61,16.819,16.81,15.50248]
[1673624371003,44.6,16.82,16.81,15.50248]
[1673624371737,64.6,16.82,16.81,15.50248]
[1673624373735,44.6,16.82,16.81,15.50248]
[1673624374888,20.0,16.819,16.81,15.50248]
[1673624375099,44.61,16.818,16.81,15.50248]
[1673624376556,223.61,16.818,16.801,20.0]
[1673624376974,20.0,16.817,16.801,20.0]
[1673624377199,20.0,16.815,16.801,20.0]
[1673624381408,223.61,16.816,16.801,20.0]
[1673624381620,44.61,16.816,16.801,20.0]
[1673624381808,64.61,16.819,16.801,20.0]
[1673624382019,20.0,16.817,16.801,20.0]
[1673624382241,243.61,16.817,16.801,20.0]
[1673624386548,233.51,16.817,16.801,20.0]
[1673624388765,44.61,16.817,16.801,20.0]
[1673624388961,275.04411713,16.819,16.801,20.0]
[1673624389181,20.0,16.818,16.801,20.0]
[1673624389512,44.61,16.817,16.801,20.0]
[1673624389908,44.61,16.818,16.801,20.0]
[1673624390143,64.61,16.818,16.801,20.0]
[1673624390453,44.61,16.818,16.801,20.0]
[1673624390665,64.61,16.818,16.801,20.0]
[1673624391706,20.0,16.817,16.801,20.0]
[1673624391919,44.62,16.816,16.801,20.0]
[1673624392548,44.61,16.817,16.801,20.0]
[1673624393911,223.61,16.817,16.801,20.0]
[1673624394852,20.0,16.816,16.801,20.0]
[1673624395062,44.62,16.815,16.801,20.0]
[1673624396757,44.62,16.816,16.801,20.0]
[1673624396956,44.61,16.817,16.801,20.0]
[1673624397164,44.61,16.818,16.81,12.06]
[1673624397375,44.61,16.819,16.81,12.06]
[1673624397794,44.6,16.82,16.81,12.06]
[1673624400523,64.6,16.82,16.81,12.06]
[1673624401051,44.6,16.82,16.81,12.06]
[1673624405048,44.6,16.823,16.811,20.0]
[1673624405371,44.1,16.823,16.811,20.0]
[1673624405686,44.59,16.826,16.811,20.0]
[1673624406428,64.59,16.827,16.812,108.394]
[1673624406745,44.59,16.827,16.812,108.394]
[1673624408090,64.59,16.827,16.812,108.394]
[1673624408294,44.59,16.827,16.812,108.394]
[1673624408935,163.3182,16.828,16.812,108.394]
[1673624409358,44.58,16.829,16.82,12.06]
[1673624409569,44.58,16.831,16.82,12.06]
[1673624409779,20.0,16.83,16.82,12.06]
[1673624410716,64.58,16.831,16.82,12.06]
[1673624410935,20.0,16.831,16.82,12.06]
[1673624411143,44.58,16.83,16.82,12.06]
[1673624411474,20.0,16.831,16.82,12.06]
[1673624411666,44.58,16.83,16.82,12.06]
[1673624413363,20.0,16.831,16.82,12.06]
[1673624413552,20.0,16.832,16.82,12.06]
[1673624413763,44.58,16.831,16.82,12.06]
[1673624413988,20.0,16.83,16.82,60.32]
[1673624414187,44.58,16.831,16.821,20.0]
[1673624414518,145.9601776,16.837,16.821,20.0]
[1673624414519,44.56,16.835,16.822,20.0]
[1673624414715,44.56,16.836,16.822,20.0]
[1673624415365,44.56,16.836,16.83,12.06]
[1673624415563,239.13,16.843,16.83,12.06]
[1673624415564,44.55,16.84,16.83,12.06]
[1673624415774,44.55,16.842,16.83,12.06]
[1673624415971,20.0,16.841,16.83,12.06]
[1673624416185,44.55,16.84,16.83,12.06]
[1673624416703,20.0,16.841,16.83,12.06]
[1673624417647,20.0,16.842,16.83,12.06]
[1673624417858,243.55,16.842,16.83,12.06]
[1673624418174,113.38411713,16.842,16.83,12.06]
[1673624421554,64.55,16.842,16.83,12.06]
[1673624422927,20.0,16.842,16.83,12.06]
[1673624423245,44.55,16.841,16.83,12.06]
[1673624423446,20.0,16.84,16.83,12.06]
[1673624423665,64.55,16.842,16.83,12.06]
[1673624424602,243.55,16.842,16.83,12.06]
[1673624425131,20.0,16.841,16.83,12.06]
[1673624425343,44.05,16.84,16.83,12.06]
[1673624425542,20.0,16.839,16.83,12.06]
[1673624425746,44.56,16.838,16.822,20.0]
[1673624425958,20.0,16.839,16.821,264.2341]
[1673624426172,20.0,16.839,16.821,244.2341]
[1673624426694,179.0,16.837,16.821,244.2341]
[1673624426903,44.56,16.836,16.821,244.2341]
[1673624428080,44.56,16.838,16.821,244.2341]
[1673624428483,20.0,16.837,16.821,244.2341]
[1673624429437,48.83411713,16.841,16.821,244.2341]
[1673624429651,367.7667,16.843,16.821,244.2341]
[1673624430282,20.0,16.842,16.822,20.0]
[1673624430497,367.7667,16.843,16.823,20.0]
[1673624430837,347.7667,16.843,16.823,20.0]
[1673624431227,168.7667,16.843,16.83,15.94]
[1673624431438,168.7667,16.843,16.831,20.0]
[1673624432177,347.7667,16.843,16.831,20.0]
[1673624432387,168.7667,16.843,16.831,20.0]
[1673624433746,168.7667,16.843,16.83,133.8053]
[1673624438688,168.7667,16.843,16.831,20.0]
[1673624443209,108.6367,16.843,16.831,20.0]
[1673624443415,44.53,16.847,16.831,20.0]
[1673624443763,44.52,16.851,16.84,15.94]
[1673624443971,20.0,16.85,16.84,15.94]
[1673624444177,44.53,16.849,16.84,15.94]
[1673624444368,60.13,16.854,16.841,20.0]
[1673624444582,20.0,16.851,16.841,20.0]
[1673624444795,64.52,16.85,16.833,108.754]
[1673624445335,60.13,16.849,16.84,16.04]
[1673624445544,239.13,16.854,16.84,16.04]
[1673624445760,80.13,16.852,16.84,16.04]
[1673624445947,60.13,16.85,16.84,16.04]
[1673624446151,44.51,16.855,16.84,16.04]
[1673624446379,60.13,16.854,16.84,16.04]
[1673624446677,60.13,16.852,16.84,16.04]
[1673624447115,60.13,16.852,16.84,100.01]
[1673624447433,60.13,16.852,16.84,80.01]
[1673624447634,60.13,16.854,16.84,80.01]
[1673624447846,60.13,16.852,16.84,80.01]
[1673624448908,60.13,16.853,16.84,80.01]
[1673624449120,60.13,16.853,16.84,15.9]
[1673624449518,60.13,16.853,16.84,80.06]
[1673624449860,60.13,16.852,16.84,80.06]
[1673624451013,60.13,16.855,16.84,80.06]
[1673624451204,60.13,16.853,16.84,80.06]
[1673624452042,154.1561,16.857,16.841,20.0]
[1673624452253,104.63,16.858,16.841,20.0]
[1673624452472,104.63,16.858,16.85,16.04]
[1673624454557,283.63,16.858,16.84,193.6436]
[1673624454774,398.4161,16.858,16.84,193.6436]
[1673624454999,20.0,16.857,16.84,193.6436]
[1673624455197,179.0,16.855,16.84,193.6436]
[1673624455527,44.51,16.854,16.84,193.6436]
[1673624455947,20.0,16.853,16.84,129.4836]
[1673624456260,179.0,16.851,16.84,15.9]
[1673624456471,44.52,16.85,16.84,15.9]
[1673624456656,20.0,16.849,16.84,15.9]
[1673624457315,20.0,16.849,16.84,12.01]
[1673624458365,44.53,16.848,16.84,12.01]
[1673624458764,223.53,16.848,16.84,12.01]
[1673624458991,20.0,16.847,16.833,111.6183]
[1673624460557,44.53,16.848,16.833,111.6183]
[1673624461187,44.53,16.848,16.84,11.92]
[1673624461393,119.994,16.849,16.84,11.92]
[1673624461607,44.52,16.852,16.84,11.92]
[1673624461942,179.0,16.856,16.84,59.89]
[1673624461943,64.51,16.855,16.84,59.89]
[1673624462566,44.51,16.855,16.84,59.89]
[1673624462762,340.3336,16.856,16.84,59.89]
[1673624462974,20.0,16.855,16.84,59.89]
[1673624463503,340.3336,16.856,16.84,59.89]
[1673624463714,161.3336,16.856,16.84,59.89]
[1673624464039,104.64,16.857,16.84,59.89]
[1673624464250,60.13,16.858,16.84,59.89]
[1673624464479,60.13,16.858,16.841,20.0]
[1673624464651,44.51,16.857,16.84,59.89]
[1673624464990,104.63,16.858,16.84,59.89]
[1673624465185,104.63,16.858,16.841,20.0]
[1673624465921,60.13,16.858,16.841,20.0]
[1673624466130,44.51,16.857,16.841,20.0]
[1673624466553,60.13,16.858,16.841,20.0]
[1673624466760,104.63,16.858,16.841,20.0]
[1673624466977,104.63,16.858,16.85,11.99]
[1673624467181,60.13,16.858,16.85,11.99]
[1673624467389,187.7526595,16.859,16.85,11.99]
[1673624468031,187.7526595,16.859,16.85,59.84]
[1673624471923,187.7526595,16.859,16.851,20.0]
[1673624474028,187.7526595,16.859,16.85,59.84]
[1673624474549,187.7526595,16.859,16.85,11.93]
[1673624475397,187.7526595,16.859,16.85,59.97]
[1673624477608,44.5,16.858,16.85,59.97]
[1673624478330,44.5,16.858,16.842,128.0104]
[1673624478543,401.9,16.858,16.842,108.0104]
[1673624478749,20.0,16.857,16.842,108.0104]
[1673624478944,44.51,16.856,16.842,108.0104]
[1673624479371,401.91,16.856,16.842,108.0104]
[1673624479598,580.91,16.856,16.842,108.0104]
[1673624479817,20.0,16.855,16.842,108.0104]
[1673624480014,44.51,16.854,16.842,108.0104]
[1673624481059,580.91,16.854,16.84,60.05]
[1673624481488,20.0,16.853,16.84,60.05]
[1673624481698,44.52,16.852,16.84,60.05]
[1673624482224,44.52,16.853,16.84,60.05]
[1673624482845,536.4,16.854,16.84,60.05]
[1673624483272,535.9,16.854,16.84,60.05]
[1673624483491,356.9,16.854,16.84,60.05]
[1673624484106,20.0,16.852,16.84,12.01]
[1673624484441,401.42,16.851,16.84,12.01]
[1673624484838,356.9,16.851,16.84,12.01]
[1673624485278,44.51,16.855,16.84,12.01]
[1673624485494,44.51,16.855,16.841,20.0]
[1673624485896,401.91,16.855,16.84,60.05]
[1673624486107,357.4,16.853,16.84,12.01]
[1673624486319,357.4,16.851,16.84,12.01]
[1673624486522,401.92,16.85,16.84,12.01]
[1673624487685,20.0,16.849,16.84,12.01]
[1673624488118,536.4,16.85,16.84,12.01]
[1673624488308,64.53,16.849,16.84,12.01]
[1673624488647,421.93,16.849,16.832,108.7736]
[1673624488830,421.93,16.849,16.838,20.0]
[1673624489047,377.4,16.849,16.838,20.0]
[1673624489578,357.4,16.85,16.834,20.0]
[1673624490321,580.92,16.85,16.834,20.0]
[1673624490724,20.0,16.849,16.834,20.0]
[1673624490941,580.92,16.85,16.834,20.0]
[1673624492535,536.4,16.85,16.834,20.0]
[1673624492848,44.53,16.849,16.834,20.0]
[1673624493695,401.92,16.852,16.84,16.02]
[1673624494431,357.4,16.852,16.84,16.02]
[1673624494846,417.53,16.852,16.84,16.02]
[1673624495154,44.51,16.854,16.84,80.09]
[1673624495371,44.51,16.855,16.84,80.09]
[1673624495683,401.91,16.855,16.84,80.09]
[1673624496213,401.91,16.855,16.841,20.0]
[1673624496730,401.91,16.855,16.84,80.09]
[1673624496947,580.91,16.855,16.84,80.09]
[1673624498003,580.91,16.855,16.84,15.89]
[1673624498816,401.91,16.855,16.84,15.89]
[1673624499676,401.91,16.855,16.841,20.0]
[1673624500080,401.91,16.855,16.84,79.99]
[1673624501991,401.91,16.855,16.84,16.01]
[1673624502305,536.4,16.853,16.84,16.01]
[1673624502531,401.92,16.852,16.84,16.01]
[1673624503141,580.92,16.852,16.839,119.9732]
[1673624503355,580.92,16.852,16.84,20.0]
[1673624504385,641.05,16.852,16.84,20.0]
[1673624507045,20.0,16.851,16.834,20.0]
[1673624507228,357.4,16.849,16.84,16.02]
[1673624507437,44.53,16.848,16.84,16.02]
[1673624508510,44.53,16.85,16.84,16.02]
[1673624509644,44.52,16.851,16.84,16.02]
[1673624510587,417.53,16.852,16.84,16.02]
[1673624510797,44.52,16.851,16.84,16.02]
[1673624512603,357.4,16.853,16.84,16.02]
[1673624512804,44.52,16.852,16.84,16.02]
[1673624513751,401.92,16.852,16.84,16.02]
[1673624513952,641.05,16.852,16.84,16.02]
[1673624514162,20.0,16.851,16.84,16.02]
[1673624514372,536.4,16.849,16.833,40.0]
[1673624514602,401.93,16.848,16.833,40.0]
[1673624517440,401.93,16.848,16.833,20.0]
[1673624518931,580.93,16.848,16.831,128.7957]
[1673624519249,580.93,16.848,16.831,108.7957]
[1673624523028,20.0,16.847,16.831,108.7957]
[1673624523349,536.4,16.845,16.831,108.7957]
[1673624523655,357.4,16.843,16.831,108.7957]
[1673624523869,536.4,16.84,16.83,15.9]
[1673624524059,417.53,16.837,16.822,108.8446]
[1673624524293,357.4,16.837,16.823,20.0]
[1673624525028,60.13,16.839,16.823,20.0]
[1673624525349,60.13,16.837,16.823,40.0]
[1673624525559,60.13,16.837,16.823,20.0]
[1673624527046,60.13,16.838,16.823,20.0]
[1673624527567,44.55,16.839,16.823,20.0]
[1673624527769,44.55,16.841,16.824,20.0]
[1673624527970,357.4,16.842,16.825,20.0]
[1673624528391,357.4,16.84,16.825,20.0]
[1673624528605,44.55,16.839,16.825,20.0]
[1673624528923,357.4,16.838,16.823,20.0]
[1673624529547,401.96,16.838,16.823,20.0]
[1673624529770,357.4,16.839,16.823,20.0]
[1673624529988,44.56,16.838,16.823,20.0]
[1673624530618,357.4,16.839,16.823,20.0]
[1673624530832,357.4,16.841,16.823,20.0]
[1673624531015,44.55,16.84,16.823,20.0]
[1673624531866,580.95,16.84,16.823,20.0]
[1673624532075,20.0,16.839,16.823,20.0]
[1673624532287,44.56,16.838,16.823,20.0]
[1673624532818,44.55,16.839,16.823,40.0]
[1673624533027,44.55,16.841,16.823,40.0]
[1673624533443,44.55,16.842,16.83,16.02]
[1673624533673,44.54,16.843,16.83,16.02]
[1673624533978,223.54,16.843,16.83,16.02]
[1673624534401,44.54,16.843,16.83,16.02]
[1673624538080,223.54,16.843,16.83,16.02]
[1673624538598,44.54,16.843,16.83,16.02]
[1673624541842,44.54,16.843,16.83,80.09]
[1673624542177,44.53,16.847,16.831,20.0]
[1673624542370,44.52,16.85,16.831,20.0]
[1673624543125,20.0,16.849,16.83,80.09]
[1673624543325,20.0,16.846,16.83,80.09]
[1673624543647,44.54,16.845,16.83,80.09]
[1673624544485,179.0,16.844,16.83,80.09]
[1673624544697,223.54,16.843,16.83,80.09]
[1673624545519,20.0,16.842,16.83,80.09]
[1673624545727,179.0,16.84,16.83,15.89]
[1673624546040,223.55,16.839,16.823,20.0]
[1673624546465,44.55,16.839,16.823,20.0]
[1673624546675,44.55,16.841,16.823,20.0]
[1673624546888,44.55,16.841,16.824,20.0]
[1673624547097,44.55,16.842,16.825,20.0]
[1673624548164,44.54,16.843,16.825,20.0]
[1673624548996,243.54,16.843,16.83,16.02]
[1673624549420,265.47907885,16.843,16.83,16.02]
[1673624549632,239.13,16.838,16.821,111.2968]
[1673624549840,104.69,16.837,16.821,111.2968]
[1673624551293,104.69,16.837,16.822,20.0]
[1673624551736,104.69,16.837,16.821,111.2968]
[1673624551937,104.69,16.837,16.822,20.0]
[1673624552883,44.55,16.842,16.822,20.0]
[1673624553097,20.0,16.841,16.822,20.0]
[1673624553304,44.55,16.84,16.822,20.0]
[1673624555923,223.55,16.84,16.821,111.2968]
[1673624556133,117.3798,16.839,16.821,111.2968]
[1673624556339,44.56,16.838,16.821,111.2968]
[1673624557204,60.13,16.837,16.821,111.2968]
[1673624557408,44.56,16.836,16.821,111.2968]
[1673624558550,104.69,16.837,16.821,111.2968]
[1673624558988,283.69,16.837,16.821,111.2968]
[1673624559608,305.62907885,16.837,16.821,111.2968]
[1673624560147,20.0,16.836,16.821,111.2968]
[1673624560341,223.56,16.835,16.821,111.2968]
[1673624560746,20.0,16.834,16.821,111.2968]
[1673624560984,44.57,16.833,16.82,15.99]
[1673624561170,199.0,16.832,16.812,111.2047]
[1673624561381,223.58,16.831,16.812,111.2047]
[1673624561606,20.0,16.83,16.812,111.2047]
[1673624561816,179.0,16.828,16.812,111.2047]
[1673624562032,223.59,16.827,16.812,111.2047]
[1673624562227,44.59,16.827,16.812,111.2047]
[1673624562443,44.58,16.829,16.812,111.2047]
[1673624562979,223.58,16.829,16.812,111.2047]
[1673624563809,20.0,16.828,16.812,111.2047]
[1673624564019,179.0,16.826,16.812,111.2047]
[1673624564233,44.59,16.825,16.812,111.2047]
[1673624564435,223.58,16.828,16.812,111.2047]
[1673624565710,44.58,16.828,16.813,20.0]
[1673624565902,44.58,16.829,16.813,20.0]
[1673624566115,223.58,16.829,16.812,111.2047]
[1673624566741,44.58,16.829,16.813,20.0]
[1673624567157,44.58,16.829,16.812,111.2047]
[1673624567915,44.58,16.829,16.813,20.0]
[1673624571191,223.58,16.829,16.812,111.2047]
[1673624573508,20.0,16.828,16.812,111.2047]
[1673624573704,179.0,16.826,16.812,111.2047]
[1673624573918,44.59,16.825,16.812,111.2047]
[1673624574228,44.59,16.825,16.813,20.0]
[1673624574437,44.58,16.828,16.813,20.0]
[1673624574859,44.58,16.829,16.813,20.0]
[1673624575058,20.0,16.83,16.813,20.0]
[1673624575264,44.58,16.829,16.813,20.0]
[1673624577195,223.58,16.829,16.812,111.2047]
[1673624579485,223.58,16.829,16.813,20.0]
[1673624580839,44.58,16.829,16.813,20.0]
[1673624581481,44.58,16.829,16.82,16.02]
[1673624581698,109.165,16.832,16.821,20.0]
[1673624582434,109.165,16.832,16.818,20.0]
[1673624582641,109.165,16.832,16.814,20.0]
[1673624583175,288.165,16.832,16.814,20.0]
[1673624583487,109.165,16.832,16.814,20.0]
[1673624584440,44.58,16.831,16.814,20.0]
[1673624585889,44.58,16.831,16.814,49.8800799]
[1673624587994,44.58,16.831,16.815,20.0]
[1673624588220,44.58,16.831,16.816,20.0]
[1673624588854,44.58,16.831,16.82,16.02]
[1673624589062,44.58,16.831,16.821,20.0]
[1673624590205,44.58,16.831,16.816,20.0]
[1673624590411,199.0,16.83,16.81,79.98]
[1673624590625,44.58,16.829,16.81,79.98]
[1673624590843,223.58,16.829,16.81,79.98]
[1673624591590,44.58,16.829,16.81,79.98]
[1673624592411,44.58,16.829,16.815,20.0]
[1673624592948,44.58,16.829,16.816,29.8800799]
[1673624593474,44.58,16.831,16.816,29.8800799]
[1673624593677,44.58,16.831,16.817,20.0]
[1673624593893,118.844,16.839,16.817,20.0]
[1673624593894,44.56,16.836,16.82,16.02]
[1673624594104,104.69,16.837,16.821,136.5991]
[1673624595048,104.69,16.837,16.821,166.4791799]
[1673624596505,104.69,16.837,16.822,20.0]
[1673624596720,60.13,16.837,16.822,20.0]
[1673624596930,60.13,16.837,16.823,29.8800799]
[1673624598099,60.13,16.837,16.824,20.0]
[1673624598501,60.13,16.837,16.824,49.8800799]
[1673624598833,44.56,16.838,16.824,49.8800799]
[1673624599031,44.55,16.841,16.825,20.0]